[Event "121st Swiss Championship 2022"]
[Site "Samnaun-Compatsch"]
[Date "2022.07.08"]
[Round "6.3"]
[White "Schlegel, Igor"]
[Black "Gallagher, Joseph G."]
[Result "1/2-1/2"]
[ECO "B40"]
[WhiteElo "2194"]
[BlackElo "2447"]
[Annotator "RC"]
[PlyCount "147"]
[EventDate "2022.06.28"]
[EventType "swiss"]
[EventCountry "SUI"]
[SourceTitle "playchess.com"]
[Source "ChessBase"]
[SourceQuality "1"]
[TimeControl "40/5400+30:1800+30"]

1. e4 {[%emt 0:00:01]} c5 {[%emt 0:00:05]} 2. Nf3 {[%emt 0:00:03]} e6 {[%emt 0:00:11]} 3. g3 {[%emt 0:00:07]} Nc6 {[%emt 0:00:22]} 4. Bg2 {[%emt 0:00:04]} Nf6 {[%emt 0:00:18]} 5. Qe2 {[%emt 0:00:08]} e5 {[%emt 0:02:13]} 6. O-O {[%emt 0:00:32]} Be7 {[%emt 0:00:57]} 7. Nc3 {[%emt 0:00:24]} O-O {[%emt 0:04:51]} 8. Nd5 {[%emt 0:00:19]} d6 {[%emt 0:03:48]} 9. c3 {[%emt 0:00:09]} h6 {[%emt 0:02:49]} 10. d3 {[%emt 0:03:26]} Re8 {[%emt 0:07:06]} 11. a4 {[%emt 0:08:30]} Bf8 {[%emt 0:02:01]} 12. Qc2 {[%emt 0:02:03]} Nxd5 {[%emt 0:05:33]} 13. exd5 {[%emt 0:00:04]} Ne7 {[%emt 0:00:04]} 14. Qb3 {[%emt 0:23:00]} Qc7 {[%emt 0:10:14]} 15. Qc4 {[%emt 0:02:18]} a5 {[%emt 0:17:15]} 16. Nd2 {[%emt 0:12:17]} Bf5 {[%emt 0:08:18]} 17. Rd1 {[%emt 0:13:56]} Bg6 {[%emt 0:09:59]} 18. Qb5 {[%emt 0:03:31]} Bh5 {[%emt 0:04:43]} 19. Re1 {[%emt 0:00:19]} f6 {[%emt 0:00:04]} 20. Nc4 {[%emt 0:09:59]} Bf7 {[%emt 0:00:44]} 21. Ne3 {[%emt 0:00:10]} Reb8 {[%emt 0:01:12]} 22. Qc4 {[%emt 0:02:03]} Qd7 {[%emt 0:00:50]} 23. f4 {[%emt 0:04:38]} Nc8 {[%emt 0:07:33]} 24. Rf1 {[%emt 0:03:31]} b5 {[%emt 0:01:13]} 25. axb5 {[%emt 0:01:04]} Nb6 {[%emt 0:02:09]} 26. Qe4 {[%emt 0:00:28]} Qxb5 {[%emt 0:00:04]} 27. fxe5 {[%emt 0:00:19]} dxe5 {[%emt 0:00:06]} 28. Qf5 {[%emt 0:02:05]} Qd7 {[%emt 0:01:51]} 29. Qxd7 {[%emt 0:01:03]} Nxd7 {[%emt 0:00:01]} 30. Nc4 {[%emt 0:00:08]} Nb6 {[%emt 0:00:50]} 31. Nxb6 {[%emt 0:03:25]} Rxb6 {[%emt 0:00:02]} 32. Ra2 {[%emt 0:00:14]} Rb3 {[%emt 0:01:46]} 33. Be4 {[%emt 0:00:49]} Bd6 {[%emt 0:02:47]} 34. Kf2 {[%emt 0:03:24]} f5 {[%emt 0:03:33]} 35. Bxf5 {[%emt 0:00:43]} Bxd5 {[%emt 0:00:18]} 36. Be4 {[%emt 0:00:03]} Bxe4 {[%emt 0:01:03]} 37. dxe4 {[%emt 0:00:01]} a4 {[%emt 0:00:06]} 38. Rd1 {[%emt 0:01:17]} Ra6 {[%emt 0:00:30]} 39. Ke2 {[%emt 0:01:59]} c4 {[%emt 0:00:14]} 40. Kd2 {[%emt 0:00:32]} Kf7 {[%emt 0:00:41]} 41. Kc2 {[%emt 0:30:14]} Ke6 {[%emt 0:30:40]} 42. Rd5 {[%emt 0:00:00]} Rb7 {[%emt 0:00:00]} 43. Be3 {[%emt 0:00:00]} Rf7 {[%emt 0:00:00]} 44. Ra1 {[%emt 0:00:00]} Rf3 {[%emt 0:00:00]} 45. Bg1 {[%emt 0:00:00]} h5 {[%emt 0:00:00]} 46. Rad1 {[%emt 0:00:00]} h4 {[%emt 0:00:00]} 47. Bc5 {[%emt 0:00:00]} Bxc5 48. Rxc5 {[%emt 0:00:00]} Rd6 {[%emt 0:00:19]} 49. gxh4 {[%emt 0:00:00]} Rf2+ {[%emt 0:00:21]} 50. Kc1 {[%emt 0:00:00]} Rxd1+ {[%emt 0:01:33]} 51. Kxd1 {[%emt 0:00:00]} Rxb2 {[%emt 0:00:11]} 52. Rxc4 {[%emt 0:01:26]} a3 {[%emt 0:00:22]} 53. Kc1 {[%emt 0:00:06]} Rxh2 {[%emt 0:01:01]} 54. Kb1 {[%emt 0:02:17]} Rxh4 {[%emt 0:00:06]} 55. Ka2 {[%emt 0:00:16]} g5 {[%emt 0:00:17]} 56. Kxa3 {[%emt 0:00:04]} g4 {[%emt 0:01:49]} 57. Rc8 {[%emt 0:00:15]} Kf7 {[%emt 0:00:22]} 58. Rc7+ {[%emt 0:00:36]} Kf6 {[%emt 0:00:18]} 59. Rc8 {[%emt 0:00:06]} Kg5 {[%emt 0:01:47]} 60. c4 {[%emt 0:02:55]} g3 {[%emt 0:01:27]} 61. Rg8+ {[%emt 0:00:59]} Kf4 {[%emt 0:00:12]} 62. c5 {[%emt 0:00:03]} Rh1 {[%emt 0:01:42]} 63. Kb4 {[%emt 0:00:33]} Kf3 {[%emt 0:00:05]} 64. Kc4 {[%emt 0:00:51]} g2 {[%emt 0:00:13]} 65. Kd5 {[%emt 0:00:07]} g1=Q 66. Rxg1 {[%emt 0:00:05]} Rxg1 {[%emt 0:00:50]} 67. Kxe5 {[%emt 0:00:12]} Rg5+ {[%emt 0:01:12]} 68. Kd4 {[%emt 0:02:44]} Kf4 {[%emt 0:00:26]} 69. c6 {[%emt 0:00:04]} Rg1 {[%emt 0:00:10]} 70. Kd5 {[%emt 0:00:23]} Rc1 {[%emt 0:00:42]} 71. Kd6 {[%emt 0:00:52]} Kxe4 {[%emt 0:00:46]} 72. c7 {[%emt 0:00:04]} Kf5 {[%emt 0:00:16]} 73. Kd7 {[%emt 0:00:05]} Rxc7+ {[%emt 0:00:14]} 74. Kxc7 {[%emt 0:00:04]} 1/2-1/2

[Event "121st Swiss Championship 2022"]
[Site "Samnaun-Compatsch"]
[Date "2022.07.08"]
[Round "6.4"]
[White "Gschnitzer, Adrian"]
[Black "Gaehwiler, Gabriel"]
[Result "1/2-1/2"]
[ECO "C24"]
[WhiteElo "2433"]
[BlackElo "2420"]
[Annotator "TA"]
[PlyCount "26"]
[EventDate "2022.06.28"]
[EventType "swiss"]
[EventCountry "SUI"]
[SourceTitle "playchess.com"]
[Source "ChessBase"]
[SourceQuality "1"]
[TimeControl "40/5400+30:1800+30"]

{[%evp 10,26,25,-16,-14,-16,-15,-14,-14,-15,3,-11,0,0,9,9,7,5,8]} 1. e4 {[%emt 0:00:03]} e5 {[%emt 0:00:13]} 2. Bc4 {[%emt 0:00:14]} Nf6 {[%emt 0:04:30]} 3. d3 {[%emt 0:00:13]} c6 {[%emt 0:05:33]} 4. Nf3 {[%emt 0:00:13]} d5 {[%emt 0:00:13]} 5. Bb3 {[%emt 0:00:13]} Bd6 {[%emt 0:09:46]} 6. O-O {[%emt 0:02:21]} dxe4 {[%emt 0:09:25] The position is equal. C24: Bishop's Opening: 2...Nf6.} 7. Ng5 {[%emt 0:05:25][%csl LRe4,LRf7]} O-O {[%emt 0:01:19]} 8. Nxe4 {[%emt 0:01:08]} Nxe4 {[%emt 0:08:43]} 9. dxe4 {[%emt 0:00:03]} Qe7 {[%emt 0:00:32] [#]} 10. Be3 $146 {[%emt 0:03:20]} ({Predecessor:} 10. Nd2 Nd7 11. Nc4 Bc7 12. f4 b5 13. Nxe5 Nxe5 14. fxe5 Bxe5 15. Qh5 g6 16. Qh6 {½-½ (35) Hebden,M (2560)-Fernandez,D (2381) Hastings 2014}) 10... Be6 {[%emt 0:05:40]} 11. Nd2 {[%emt 0:09:03]} Nd7 {[%emt 0:03:18]} 12. Bxe6 {[%emt 0:06:22]} Qxe6 {[%emt 0:00:05]} 13. Nb3 {[%emt 0:01:24]} Qe7 {[%emt 0:05:28] A balanced but interesting game.  Weighted Error Value: White=0.07 (flawless) /Black=0.10 (very precise)} 1/2-1/2

[Event "121st Swiss Championship 2022"]
[Site "Samnaun-Compatsch"]
[Date "2022.07.08"]
[Round "6.5"]
[White "Fecker, Noah"]
[Black "Lou, Vincent"]
[Result "1/2-1/2"]
[ECO "B25"]
[WhiteElo "2387"]
[BlackElo "2200"]
[Annotator "RC"]
[PlyCount "88"]
[EventDate "2022.06.28"]
[EventType "swiss"]
[EventCountry "SUI"]
[SourceTitle "playchess.com"]
[Source "ChessBase"]
[SourceQuality "1"]
[TimeControl "40/5400+30:1800+30"]

1. e4 {[%emt 0:00:02]} c5 {[%emt 0:02:57]} 2. Nc3 {[%emt 0:00:09]} a6 {[%emt 0:01:13]} 3. g3 {[%emt 0:00:28]} Nc6 {[%emt 0:02:28]} 4. Bg2 {[%emt 0:00:54]} g6 {[%emt 0:07:10]} 5. f4 {[%emt 0:10:19]} Bg7 {[%emt 0:01:53]} 6. Nf3 {[%emt 0:00:32]} d6 {[%emt 0:16:15]} 7. O-O {[%emt 0:02:20]} Nf6 {[%emt 0:06:42]} 8. d3 {[%emt 0:03:25]} O-O {[%emt 0:00:35]} 9. h3 {[%emt 0:00:23]} Rb8 {[%emt 0:09:10]} 10. g4 {[%emt 0:14:01]} b5 {[%emt 0:03:15]} 11. Qe1 {[%emt 0:02:50]} Bb7 {[%emt 0:06:09]} 12. Be3 {[%emt 0:06:47]} b4 {[%emt 0:05:00]} 13. Ne2 {[%emt 0:02:51]} Nd7 {[%emt 0:02:11]} 14. Rb1 {[%emt 0:03:53]} e6 {[%emt 0:05:06]} 15. Ng3 {[%emt 0:03:56]} d5 {[%emt 0:02:41]} 16. e5 {[%emt 0:02:31]} Qe7 {[%emt 0:02:08]} 17. Qf2 {[%emt 0:06:34]} Rbc8 {[%emt 0:03:20]} 18. Rbe1 {[%emt 0:03:19]} Rfe8 {[%emt 0:01:35]} 19. Kh1 {[%emt 0:05:45]} a5 {[%emt 0:00:47]} 20. h4 {[%emt 0:05:33]} d4 {[%emt 0:05:18]} 21. Bd2 {[%emt 0:04:21]} f5 {[%emt 0:01:06]} 22. gxf5 {[%emt 0:00:44]} gxf5 {[%emt 0:00:15]} 23. Rg1 {[%emt 0:03:01]} Kh8 {[%emt 0:01:49]} 24. Ng5 {[%emt 0:00:04]} h6 {[%emt 0:02:55]} 25. Nf3 {[%emt 0:00:29]} Rg8 {[%emt 0:01:04]} 26. Kh2 {[%emt 0:00:22]} Nd8 {[%emt 0:04:37]} 27. Bh3 {[%emt 0:01:56]} Qf7 {[%emt 0:02:30]} 28. Rg2 {[%emt 0:01:46]} Bf8 {[%emt 0:00:38]} 29. Reg1 {[%emt 0:01:06]} Be7 {[%emt 0:02:13]} 30. c4 {[%emt 0:10:22]} Nc6 {[%emt 0:00:40]} 31. Qe2 {[%emt 0:00:27]} Qh7 {[%emt 0:01:20]} 32. Be1 {[%emt 0:01:39]} Rcf8 {[%emt 0:00:17]} 33. Rh1 {[%emt 0:00:25]} Nd8 {[%emt 0:00:22]} 34. Kg1 {[%emt 0:00:24]} Rg7 {[%emt 0:01:02]} 35. Kf1 {[%emt 0:00:51]} Kg8 {[%emt 0:00:39]} 36. Rhg1 {[%emt 0:03:11]} Kf7 {[%emt 0:00:18]} 37. Nh5 {[%emt 0:00:17]} Rxg2 {[%emt 0:00:10]} 38. Bxg2 {[%emt 0:00:21]} Rg8 {[%emt 0:00:57]} 39. Nh2 {[%emt 0:01:22]} Bxg2+ {[%emt 0:00:39]} 40. Rxg2 {[%emt 0:00:00]} Rxg2 {[%emt 0:00:32]} 41. Qxg2 {[%emt 0:29:34]} Qg6 {[%emt 0:30:30]} 42. Qf3 {[%emt 0:00:30]} a4 {[%emt 0:00:30]} 43. b3 {[%emt 0:00:00]} Nb6 {[%emt 0:00:00]} 44. Ng3 {[%emt 0:00:00]} a3 {[%emt 0:00:00]} 1/2-1/2

[Event "121st Swiss Championship 2022"]
[Site "Samnaun-Compatsch"]
[Date "2022.07.08"]
[Round "6.6"]
[White "Salzgeber, Frank"]
[Black "Loeffler, Markus"]
[Result "0-1"]
[ECO "E54"]
[WhiteElo "2131"]
[BlackElo "2278"]
[Annotator "RC"]
[PlyCount "76"]
[EventDate "2022.06.28"]
[EventType "swiss"]
[EventCountry "SUI"]
[SourceTitle "playchess.com"]
[Source "ChessBase"]
[SourceQuality "1"]
[TimeControl "40/5400+30:1800+30"]

1. d4 {[%emt 0:00:07]} Nf6 {[%emt 0:00:05]} 2. c4 {[%emt 0:00:18]} e6 {[%emt 0:00:03]} 3. Nc3 {[%emt 0:00:25]} Bb4 {[%emt 0:00:03]} 4. e3 {[%emt 0:01:24]} O-O {[%emt 0:00:13]} 5. Bd3 {[%emt 0:00:09]} d5 {[%emt 0:00:57]} 6. Nf3 {[%emt 0:00:06]} dxc4 {[%emt 0:00:12]} 7. Bxc4 {[%emt 0:00:23]} c5 {[%emt 0:00:01]} 8. O-O {[%emt 0:00:14]} cxd4 {[%emt 0:01:33]} 9. exd4 {[%emt 0:00:10]} b6 {[%emt 0:01:54]} 10. Bg5 {[%emt 0:02:57]} Bb7 {[%emt 0:01:36]} 11. Ne5 {[%emt 0:09:41]} Nbd7 {[%emt 0:15:51]} 12. Nxd7 {[%emt 0:15:31]} Qxd7 {[%emt 0:00:13]} 13. Bxf6 {[%emt 0:00:38]} gxf6 {[%emt 0:00:02]} 14. d5 {[%emt 0:02:28]} Bxc3 {[%emt 0:01:48]} 15. bxc3 {[%emt 0:06:31]} Bxd5 {[%emt 0:00:30]} 16. Qg4+ {[%emt 0:04:08]} Kh8 {[%emt 0:00:02]} 17. Qh4 {[%emt 0:06:54]} Qd8 {[%emt 0:20:34]} 18. Rfd1 {[%emt 0:09:32]} Rc8 {[%emt 0:02:16]} 19. Bxd5 {[%emt 0:05:00]} exd5 {[%emt 0:00:12]} 20. Rd3 {[%emt 0:01:24]} Rg8 {[%emt 0:01:20]} 21. Rad1 {[%emt 0:01:22]} Qe7 {[%emt 0:11:47]} 22. Re3 {[%emt 0:10:41]} Qd6 {[%emt 0:06:00]} 23. Qd4 {[%emt 0:04:12]} Rg5 {[%emt 0:11:02]} 24. f4 {[%emt 0:01:27]} Rf5 {[%emt 0:02:37]} 25. g3 {[%emt 0:06:58]} Kg7 {[%emt 0:07:38]} 26. Kg2 {[%emt 0:03:50]} Rc5 {[%emt 0:01:22]} 27. Rf3 {[%emt 0:03:40]} Qc7 {[%emt 0:02:59]} 28. Qd3 {[%emt 0:02:10]} Rh5 {[%emt 0:00:42]} 29. g4 {[%emt 0:00:33]} Rh6 {[%emt 0:00:54]} 30. h3 {[%emt 0:00:43]} Rg6 {[%emt 0:02:27]} 31. Qd4 {[%emt 0:01:25]} h5 {[%emt 0:02:21]} 32. Rg3 {[%emt 0:00:48]} hxg4 {[%emt 0:00:54]} 33. hxg4 {[%emt 0:00:12]} Rc4 {[%emt 0:00:04]} 34. Qxd5 {[%emt 0:00:32]} Rxc3 {[%emt 0:03:37]} 35. Rxc3 {[%emt 0:00:53]} Qxc3 {[%emt 0:00:02]} 36. Rd3 {[%emt 0:00:10]} Qc1 {[%emt 0:02:07]} 37. Qf3 {[%emt 0:00:38]} Rh6 {[%emt 0:00:39]} 38. Rd1 {[%emt 0:00:37]} Qc2+ {[%emt 0:00:09]} 0-1

[Event "121st Swiss Championship 2022"]
[Site "Samnaun-Compatsch"]
[Date "2022.07.08"]
[Round "6.7"]
[White "Wyss, Jonas"]
[Black "Manko, Mariya"]
[Result "1/2-1/2"]
[ECO "B51"]
[WhiteElo "2223"]
[BlackElo "2014"]
[Annotator "RC"]
[PlyCount "67"]
[EventDate "2022.06.28"]
[EventType "swiss"]
[EventCountry "SUI"]
[SourceTitle "playchess.com"]
[Source "ChessBase"]
[SourceQuality "1"]
[TimeControl "40/5400+30:1800+30"]

1. e4 {[%emt 0:00:03]} c5 {[%emt 0:04:30]} 2. Nf3 {[%emt 0:00:08]} d6 {[%emt 0:00:12]} 3. Bb5+ {[%emt 0:00:25]} Nd7 {[%emt 0:00:30]} 4. c3 {[%emt 0:00:37]} Ngf6 {[%emt 0:01:53]} 5. Qe2 {[%emt 0:00:13]} a6 {[%emt 0:01:13]} 6. Ba4 {[%emt 0:00:08]} g6 {[%emt 0:19:17]} 7. d4 {[%emt 0:03:31]} Qa5 {[%emt 0:01:33]} 8. Bb3 {[%emt 0:08:04]} cxd4 {[%emt 0:01:51]} 9. Nxd4 {[%emt 0:05:05]} Bg7 {[%emt 0:01:17]} 10. O-O {[%emt 0:02:19]} O-O {[%emt 0:00:44]} 11. Nd2 {[%emt 0:03:35]} e5 {[%emt 0:06:08]} 12. Nc2 {[%emt 0:08:15]} d5 {[%emt 0:04:26]} 13. exd5 {[%emt 0:04:50]} Nxd5 {[%emt 0:01:18]} 14. Nc4 {[%emt 0:01:38]} Qc5 {[%emt 0:02:18]} 15. Rd1 {[%emt 0:02:22]} b5 {[%emt 0:05:47]} 16. Nd6 {[%emt 0:07:14]} N7b6 {[%emt 0:03:37]} 17. Nxc8 {[%emt 0:10:16]} Raxc8 {[%emt 0:00:12]} 18. Nb4 {[%emt 0:05:44]} Nxb4 {[%emt 0:11:15]} 19. Be3 {[%emt 0:00:34]} Qc7 {[%emt 0:00:38]} 20. cxb4 {[%emt 0:00:25]} Qb7 {[%emt 0:01:06]} 21. Bc5 {[%emt 0:03:38]} Rfd8 {[%emt 0:01:49]} 22. h4 {[%emt 0:05:23]} Rd7 {[%emt 0:07:40]} 23. Bxb6 {[%emt 0:05:58]} Rxd1+ {[%emt 0:00:44]} 24. Qxd1 {[%emt 0:00:08]} Qxb6 {[%emt 0:00:20]} 25. Bxf7+ {[%emt 0:00:44]} Kh8 {[%emt 0:00:07]} 26. h5 {[%emt 0:05:59]} gxh5 {[%emt 0:04:34]} 27. Bxh5 {[%emt 0:02:40]} Qd4 {[%emt 0:01:07]} 28. Qxd4 {[%emt 0:06:35]} exd4 {[%emt 0:00:06]} 29. a4 {[%emt 0:00:11]} d3 {[%emt 0:02:46]} 30. axb5 {[%emt 0:01:22]} axb5 {[%emt 0:00:06]} 31. Rd1 {[%emt 0:00:43]} Rd8 {[%emt 0:00:14]} 32. Be2 {[%emt 0:01:06]} Bxb2 {[%emt 0:00:34]} 33. Rxd3 {[%emt 0:03:16]} Rxd3 {[%emt 0:00:11]} 34. Bxd3 {[%emt 0:00:04]} 1/2-1/2

[Event "121st Swiss Championship 2022"]
[Site "Samnaun-Compatsch"]
[Date "2022.07.08"]
[Round "6.8"]
[White "Gemelli, Romain"]
[Black "Hakimifard, Ghazal"]
[Result "0-1"]
[ECO "E15"]
[WhiteElo "2045"]
[BlackElo "2296"]
[Annotator "RC"]
[PlyCount "50"]
[EventDate "2022.06.28"]
[EventType "swiss"]
[EventCountry "SUI"]
[SourceTitle "playchess.com"]
[Source "ChessBase"]
[SourceQuality "1"]
[TimeControl "40/5400+30:1800+30"]

1. d4 {[%emt 0:00:05]} Nf6 {[%emt 0:00:07]} 2. c4 {[%emt 0:00:06]} e6 {[%emt 0:00:03]} 3. Nf3 {[%emt 0:00:07]} b6 {[%emt 0:00:05]} 4. g3 {[%emt 0:00:09]} Ba6 {[%emt 0:00:06]} 5. b3 {[%emt 0:00:39]} Bb7 {[%emt 0:00:07]} 6. Bg2 {[%emt 0:00:48]} Bb4+ {[%emt 0:00:04]} 7. Bd2 {[%emt 0:00:18]} a5 {[%emt 0:00:06]} 8. O-O {[%emt 0:07:34]} O-O {[%emt 0:00:06]} 9. a3 {[%emt 0:04:30]} Be7 {[%emt 0:01:15]} 10. Nc3 {[%emt 0:02:00]} d5 {[%emt 0:10:06]} 11. Ne5 {[%emt 0:04:58]} Nbd7 {[%emt 0:05:31]} 12. Bf4 {[%emt 0:02:12]} Rc8 {[%emt 0:06:28]} 13. Qd2 {[%emt 0:26:11]} c5 {[%emt 0:08:23]} 14. Nb5 {[%emt 0:05:23]} cxd4 {[%emt 0:05:59]} 15. Na7 {[%emt 0:05:10]} Rc5 {[%emt 0:03:40]} 16. Qxd4 {[%emt 0:18:25]} Nxe5 {[%emt 0:04:28]} 17. Bxe5 {[%emt 0:00:06]} Qa8 {[%emt 0:04:14]} 18. Nb5 {[%emt 0:01:30]} Rd8 {[%emt 0:08:10]} 19. Rfd1 {[%emt 0:06:58]} Ne8 {[%emt 0:01:06]} 20. Qc3 {[%emt 0:04:23]} a4 {[%emt 0:09:37]} 21. Qe3 {[%emt 0:04:46]} axb3 {[%emt 0:02:47]} 22. Bd4 {[%emt 0:01:13]} Rxc4 {[%emt 0:01:46]} 23. Bxb6 {[%emt 0:01:33]} b2 {[%emt 0:07:33]} 24. Rab1 {[%emt 0:00:10]} Qa4 {[%emt 0:01:53]} 25. Rxb2 {[%emt 0:01:06]} Qxd1+ {[%emt 0:00:05]} 0-1

[Event "121st Swiss Championship 2022"]
[Site "Samnaun-Compatsch"]
[Date "2022.07.08"]
[Round "6.9"]
[White "Georgescu, Lena"]
[Black "Barth, Can-Elian"]
[Result "1-0"]
[ECO "C17"]
[WhiteElo "2279"]
[BlackElo "2040"]
[Annotator "RC"]
[PlyCount "119"]
[EventDate "2022.06.28"]
[EventType "swiss"]
[EventCountry "SUI"]
[SourceTitle "playchess.com"]
[Source "ChessBase"]
[SourceQuality "1"]
[TimeControl "40/5400+30:1800+30"]

1. e4 {[%emt 0:00:17]} e6 {[%emt 0:00:05]} 2. d4 {[%emt 0:00:02]} d5 {[%emt 0:00:05]} 3. Nc3 {[%emt 0:00:02]} Bb4 {[%emt 0:00:08]} 4. e5 {[%emt 0:00:03]} c5 {[%emt 0:00:14]} 5. Bd2 {[%emt 0:00:05]} Ne7 {[%emt 0:00:28]} 6. a3 {[%emt 0:00:02]} Bxc3 {[%emt 0:00:06]} 7. Bxc3 {[%emt 0:00:03]} b6 {[%emt 0:00:26]} 8. Bb5+ {[%emt 0:00:03]} Bd7 {[%emt 0:00:21]} 9. Bd3 {[%emt 0:00:04]} Nbc6 {[%emt 0:00:45]} 10. Nf3 {[%emt 0:00:06]} Qb8 {[%emt 0:01:11]} 11. O-O {[%emt 0:00:09]} cxd4 {[%emt 0:01:16]} 12. Bb4 {[%emt 0:00:05]} Nxb4 {[%emt 0:00:51]} 13. axb4 {[%emt 0:00:14]} Nc6 {[%emt 0:00:58]} 14. Re1 {[%emt 0:00:06]} Nxb4 {[%emt 0:00:40]} 15. Ra3 {[%emt 0:00:08]} Nxd3 {[%emt 0:00:57]} 16. Rxd3 {[%emt 0:00:11]} O-O {[%emt 0:02:58]} 17. Nxd4 {[%emt 0:08:02]} f6 {[%emt 0:13:06]} 18. Rde3 {[%emt 0:44:15]} Qc8 {[%emt 0:21:37]} 19. Rc3 {[%emt 0:11:24]} Qd8 {[%emt 0:09:11]} 20. Qh5 {[%emt 0:01:47]} fxe5 {[%emt 0:07:35]} 21. Qxe5 {[%emt 0:09:11]} Rc8 {[%emt 0:06:12]} 22. Nxe6 {[%emt 0:04:03]} Bxe6 {[%emt 0:00:28]} 23. Qxe6+ {[%emt 0:00:04]} Kh8 {[%emt 0:00:10]} 24. Rxc8 {[%emt 0:04:06]} Qxc8 {[%emt 0:00:05]} 25. c3 {[%emt 0:00:38]} Qxe6 {[%emt 0:06:01]} 26. Rxe6 {[%emt 0:00:01]} h6 {[%emt 0:03:50]} 27. Rd6 {[%emt 0:02:32]} Rf5 {[%emt 0:00:21]} 28. Kf1 {[%emt 0:00:50]} Rh5 {[%emt 0:11:05]} 29. h3 {[%emt 0:00:15]} Re5 {[%emt 0:00:10]} 30. f3 {[%emt 0:06:00]} Kg8 {[%emt 0:02:36]} 31. Kf2 {[%emt 0:00:34]} Kf8 {[%emt 0:01:26]} 32. Rd7 {[%emt 0:01:27]} d4 {[%emt 0:04:09]} 33. Rxd4 {[%emt 0:01:56]} a5 {[%emt 0:00:29]} 34. f4 {[%emt 0:02:07]} Rb5 {[%emt 0:00:43]} 35. Rd2 {[%emt 0:00:05]} Ke7 {[%emt 0:01:28]} 36. Ke3 {[%emt 0:00:21]} Ke6 {[%emt 0:00:26]} 37. g4 {[%emt 0:04:15]} g6 {[%emt 0:02:13]} 38. Ke4 {[%emt 0:00:38]} a4 {[%emt 0:01:27]} 39. Kd4 {[%emt 0:02:38]} Rd5+ {[%emt 0:00:23]} 40. Ke3 {[%emt 0:00:04]} Rb5 {[%emt 0:00:12]} 41. Re2 {[%emt 0:05:18]} Rd5 {[%emt 0:11:28]} 42. Rd2 {[%emt 0:05:14]} Rb5 {[%emt 0:00:16]} 43. Kd3 {[%emt 0:00:40]} Ra5 {[%emt 0:07:20]} 44. Kc4 {[%emt 0:06:01]} a3 {[%emt 0:00:31]} 45. bxa3 {[%emt 0:00:06]} Rxa3 {[%emt 0:00:05]} 46. Rb2 {[%emt 0:00:42]} Ra6 {[%emt 0:01:56]} 47. Rb3 {[%emt 0:05:57]} Ra4+ {[%emt 0:02:02]} 48. Rb4 {[%emt 0:00:10]} Ra6 {[%emt 0:00:47]} 49. Kb5 {[%emt 0:00:06]} Ra3 {[%emt 0:00:24]} 50. Kc4 {[%emt 0:05:45]} Ra6 {[%emt 0:02:49]} 51. Kd4 {[%emt 0:04:08]} Kf6 {[%emt 0:04:57]} 52. Ke4 {[%emt 0:00:38]} Ke6 {[%emt 0:01:25]} 53. Kd4 {[%emt 0:00:50]} Kf6 {[%emt 0:00:05]} 54. c4 {[%emt 0:00:05]} Ke6 {[%emt 0:01:15]} 55. Rb5 {[%emt 0:01:37]} Kf6 {[%emt 0:01:48]} 56. Kd5 {[%emt 0:00:32]} h5 {[%emt 0:02:54]} 57. Kd4 {[%emt 0:01:03]} hxg4 {[%emt 0:00:32]} 58. hxg4 {[%emt 0:00:02]} Ke6 {[%emt 0:00:15]} 59. g5 {[%emt 0:00:30]} Kd6 {[%emt 0:00:46]} 60. Rxb6+ {[%emt 0:00:20]} 1-0

[Event "121st Swiss Championship 2022"]
[Site "Samnaun-Compatsch"]
[Date "2022.07.08"]
[Round "6.10"]
[White "Delmonico, Nils"]
[Black "Sedina, Yelena"]
[Result "0-1"]
[ECO "D34"]
[WhiteElo "1927"]
[BlackElo "2215"]
[Annotator "RC"]
[PlyCount "98"]
[EventDate "2022.06.28"]
[EventType "swiss"]
[EventCountry "SUI"]
[SourceTitle "playchess.com"]
[Source "ChessBase"]
[SourceQuality "1"]
[TimeControl "40/5400+30:1800+30"]

1. d4 {[%emt 0:00:04]} d5 {[%emt 0:05:11]} 2. Nf3 {[%emt 0:00:11]} c5 {[%emt 0:00:52]} 3. c4 {[%emt 0:01:23]} e6 {[%emt 0:00:09]} 4. g3 {[%emt 0:05:31]} Nc6 {[%emt 0:03:02]} 5. cxd5 {[%emt 0:01:38]} exd5 {[%emt 0:00:11]} 6. Bg2 {[%emt 0:01:22]} Nf6 {[%emt 0:01:59]} 7. O-O {[%emt 0:02:43]} c4 {[%emt 0:29:48]} 8. Nc3 {[%emt 0:01:41]} Be7 {[%emt 0:00:10]} 9. Bf4 {[%emt 0:11:32]} Be6 {[%emt 0:19:44]} 10. Ne5 {[%emt 0:10:33]} Qb6 {[%emt 0:01:38]} 11. Nxc6 {[%emt 0:03:09]} bxc6 {[%emt 0:00:13]} 12. e4 {[%emt 0:10:07]} dxe4 {[%emt 0:05:19]} 13. Nxe4 {[%emt 0:03:09]} O-O {[%emt 0:01:49]} 14. Nxf6+ {[%emt 0:10:10]} Bxf6 {[%emt 0:00:05]} 15. Bd6 {[%emt 0:00:18]} Rfd8 {[%emt 0:01:00]} 16. Bc5 {[%emt 0:00:10]} Qb5 {[%emt 0:19:44]} 17. Re1 {[%emt 0:12:56]} Qxb2 {[%emt 0:02:43]} 18. Re2 {[%emt 0:05:54]} Qc3 {[%emt 0:01:00]} 19. Rc1 {[%emt 0:02:02]} Qa5 {[%emt 0:00:22]} 20. Qd2 {[%emt 0:07:46]} Qc7 {[%emt 0:02:14]} 21. Qe3 {[%emt 0:00:56]} Rab8 {[%emt 0:00:36]} 22. Rec2 {[%emt 0:03:37]} Qd7 {[%emt 0:00:21]} 23. Bf1 {[%emt 0:00:36]} Bxd4 {[%emt 0:00:47]} 24. Bxd4 {[%emt 0:00:07]} Qxd4 {[%emt 0:00:06]} 25. Qxd4 {[%emt 0:00:23]} Rxd4 {[%emt 0:00:07]} 26. Bxc4 {[%emt 0:00:11]} Bxc4 {[%emt 0:02:53]} 27. Rxc4 {[%emt 0:00:03]} Rxc4 {[%emt 0:00:06]} 28. Rxc4 {[%emt 0:00:12]} Rc8 {[%emt 0:00:15]} 29. h4 {[%emt 0:00:47]} f6 {[%emt 0:00:28]} 30. Kf1 {[%emt 0:00:17]} Kf7 {[%emt 0:00:21]} 31. Ra4 {[%emt 0:01:50]} Rc7 {[%emt 0:00:06]} 32. Ke2 {[%emt 0:00:08]} Ke6 {[%emt 0:01:13]} 33. Kd3 {[%emt 0:00:29]} Rd7+ {[%emt 0:01:37]} 34. Kc3 {[%emt 0:04:33]} c5 {[%emt 0:00:31]} 35. Re4+ {[%emt 0:00:45]} Kd5 {[%emt 0:00:28]} 36. Re8 {[%emt 0:00:27]} Kc6 {[%emt 0:00:43]} 37. Rg8 {[%emt 0:00:44]} Kd5 {[%emt 0:00:16]} 38. Re8 {[%emt 0:00:06]} g6 {[%emt 0:00:42]} 39. Re2 {[%emt 0:00:56]} f5 {[%emt 0:00:31]} 40. Re8 {[%emt 0:00:13]} Rb7 {[%emt 0:00:35]} 41. Re1 {[%emt 0:05:31]} a5 {[%emt 0:09:45]} 42. Re8 {[%emt 0:00:19]} a4 {[%emt 0:00:09]} 43. Ra8 {[%emt 0:00:30]} Rb4 {[%emt 0:00:05]} 44. Ra7 {[%emt 0:00:18]} h5 {[%emt 0:01:23]} 45. f3 {[%emt 0:00:52]} Rb1 {[%emt 0:06:46]} 46. Rg7 {[%emt 0:00:35]} Rf1 {[%emt 0:00:11]} 47. Rxg6 {[%emt 0:02:58]} Rxf3+ {[%emt 0:00:13]} 48. Kc2 {[%emt 0:02:02]} Kc4 {[%emt 0:00:39]} 49. Kb2 {[%emt 0:04:09]} a3+ {[%emt 0:00:32]} 0-1